fUST/lending_fUST_20260605
["ID","MTS","AMOUNT","RATE_DAILY","PERIOD"]
[424163739,1780621847000,-272.5,0.00023248,2]
[424163755,1780621847000,-320.06063577,0.00023277,5]
[424163741,1780621847000,-150.03336244,0.00023254,30]
[424163744,1780621847000,-272.5,0.00023262,2]
[424163746,1780621847000,-272.5,0.00023269,2]
[424163756,1780621847000,-158.0,0.00023277,10]
[424163738,1780621847000,-188.4360192,0.00023245,7]
[424163720,1780621847000,-197.88,0.00023133,7]
[424163742,1780621847000,-272.5,0.00023255,2]
[424163718,1780621847000,-152.43,0.00023126,7]
[424163688,1780621847000,-1016.8,0.000226,2]
[424163695,1780621847000,-156.0,0.0002265,30]
[424163691,1780621847000,-533.1365,0.000226,2]
[424163692,1780621847000,-455.25,0.000226,2]
[424163687,1780621847000,-747.74,0.000226,2]
[424163693,1780621847000,-288.84944447,0.000226,2]
[424163690,1780621847000,-307.28,0.000226,2]
[424163689,1780621847000,-1018.083,0.000226,2]
[424163716,1780621847000,-178.09654292,0.00023083,7]
[424163698,1780621847000,-1045.52855584,0.00022794,2]
[424163700,1780621847000,-504.1928,0.000228,2]
[424163699,1780621847000,-1166.00987839,0.00022798,2]
[424163701,1780621847000,-1500.0,0.00022855,2]
[424163708,1780621847000,-1034.03998148,0.00023,2]
[424163694,1780621847000,-157.50593804,0.00022638,30]
[424163707,1780621847000,-160.0,0.00023,2]
[424163713,1780621847000,-185.21,0.00023043,7]
[424163710,1780621847000,-178.09,0.00023033,7]
[424163719,1780621847000,-186.54,0.00023126,7]
[424163721,1780621847000,-270.0,0.00023134,2]
[424163714,1780621847000,-1094.32688608,0.00023058,7]
[424163722,1780621847000,-180.0,0.00023134,2]
[424163711,1780621847000,-609.83536489,0.00023036,7]
[424163703,1780621847000,-637.42557658,0.0002288,2]
[424163705,1780621847000,-443.67,0.00022937,7]
[424163702,1780621847000,-364.372847,0.00022864,14]
[424163706,1780621847000,-443.68393291,0.00022987,7]
[424163704,1780621847000,-150.52,0.000229,2]
[424163709,1780621847000,-197.88,0.00023033,7]
[424163712,1780621847000,-152.0,0.00023039,2]
[424163795,1780621848000,-1058.71635862,0.00023277,2]
[424163800,1780621848000,-500.0,0.00023277,10]
[424163802,1780621848000,-795.62776131,0.00023277,2]
[424163798,1780621848000,-960.10114192,0.00023277,7]
[424163799,1780621848000,-3000.0,0.00023277,7]
[424163784,1780621848000,-660.76699147,0.00023277,2]
[424163794,1780621848000,-328.4588607,0.00023277,2]
[424163790,1780621848000,-152.5219341,0.00023277,2]
[424163792,1780621848000,-3823.96394105,0.00023277,2]
[424163787,1780621848000,-204.27208192,0.00023277,2]
[424163788,1780621848000,-4500.0,0.00023277,2]
[424163797,1780621848000,-1300.0,0.00023277,2]
[424163804,1780621848000,-168.27333798,0.00023277,7]
[424163813,1780621848000,-500.0,0.00023277,2]
[424163801,1780621848000,-92671.21394842,0.00023277,2]
[424163805,1780621848000,-343.69274834,0.00023277,10]
[424163806,1780621848000,-500.0,0.00023277,2]
[424163803,1780621848000,-58126.0689198,0.00023277,2]
[424163808,1780621848000,-500.0,0.00023277,2]
[424163818,1780621848000,-500.0,0.00023277,2]
[424163820,1780621848000,-500.0,0.00023277,2]
[424163807,1780621848000,-500.0,0.00023277,2]
[424163819,1780621848000,-521.83758994,0.00023277,2]
[424163809,1780621848000,-500.0,0.00023277,2]
[424163810,1780621848000,-500.0,0.00023277,2]
[424163811,1780621848000,-250.00000001,0.00023277,2]
[424163793,1780621848000,-679.08612619,0.00023277,2]
[424163796,1780621848000,-160.0,0.00023277,2]
[424163789,1780621848000,-3194.58377385,0.00023277,2]
[424163772,1780621848000,-1381.75259027,0.00023277,2]
[424163785,1780621848000,-2920.0,0.00023277,2]
[424163815,1780621848000,-200.56,0.00023277,2]
[424163760,1780621848000,-247.7047807,0.00023277,10]
[424163759,1780621848000,-181.14900086,0.00023277,2]
[424163758,1780621848000,-9524.65358339,0.00023277,2]
[424163764,1780621848000,-600.62080073,0.00023277,2]
[424163761,1780621848000,-3979.64305995,0.00023277,2]
[424163766,1780621848000,-742.87682901,0.00023277,7]
[424163765,1780621848000,-10020.35905106,0.00023277,2]
[424163762,1780621848000,-162.17333592,0.00023277,2]
[424163763,1780621848000,-295.03014117,0.00023277,2]
[424163767,1780621848000,-300.0,0.00023277,2]
[424163768,1780621848000,-822.03818634,0.00023277,2]
[424163770,1780621848000,-296.15359712,0.00023277,2]
[424163769,1780621848000,-331.83363906,0.00023277,2]
[424163777,1780621848000,-589.86881501,0.00023277,2]
[424163774,1780621848000,-712.82262038,0.00023277,2]
[424163775,1780621848000,-6390.2450583,0.00023277,2]
[424163776,1780621848000,-159.85258495,0.00023277,2]
[424163773,1780621848000,-158.87752103,0.00023277,2]
[424163778,1780621848000,-515.03481357,0.00023277,2]
[424163779,1780621848000,-474.72014679,0.00023277,2]
[424163780,1780621848000,-191.91180363,0.00023277,2]
[424163771,1780621848000,-646.55857109,0.00023277,2]
[424163782,1780621848000,-1417.46967288,0.00023277,2]
[424163781,1780621848000,-1212.69969102,0.00023277,2]
[424163791,1780621848000,-262.36368743,0.00023277,2]
[424163786,1780621848000,-391.13731498,0.00023277,2]
[424163783,1780621848000,-537803.41174263,0.00023277,7]
[424163817,1780621848000,-8000.0,0.00023277,2]
[424163814,1780621848000,-398.31999997,0.00023277,2]
[424163861,1780621848000,-326.3532855,0.00023277,2]
[424163851,1780621848000,-375.4654109,0.00023277,2]
[424163853,1780621848000,-457.1814941,0.00023277,2]
[424163854,1780621848000,-326.3657545,0.00023277,2]
[424163856,1780621848000,-457.165364,0.00023277,2]
[424163858,1780621848000,-326.3532855,0.00023277,2]
[424163866,1780621848000,-151.0,0.00023277,2]
[424163855,1780621848000,-326.3532855,0.00023277,2]
[424163859,1780621848000,-457.165364,0.00023277,2]
[424163867,1780621848000,-457.165364,0.00023277,2]
[424163863,1780621848000,-151.0,0.00023277,2]
[424163860,1780621848000,-457.165364,0.00023277,2]
[424163862,1780621848000,-457.165364,0.00023277,2]
[424163865,1780621848000,-457.165364,0.00023277,2]
[424163864,1780621848000,-326.3532855,0.00023277,2]
[424163869,1780621848000,-245.2277187,0.00023277,2]
[424163879,1780621848000,-457.1814941,0.00023277,2]
[424163872,1780621848000,-264.3022547,0.00023277,2]
[424163870,1780621848000,-151.0,0.00023277,2]
[424163868,1780621848000,-326.3532855,0.00023277,2]
[424163871,1780621848000,-326.3532855,0.00023277,2]
[424163874,1780621848000,-457.165364,0.00023277,2]
[424163873,1780621848000,-457.165364,0.00023277,2]
[424163875,1780621848000,-151.0,0.00023277,2]
[424163876,1780621848000,-326.3657545,0.00023277,2]
[424163877,1780621848000,-457.165364,0.00023277,2]
[424163878,1780621848000,-151.0,0.00023277,2]
[424163812,1780621848000,-250.00000001,0.00023277,2]
[424163850,1780621848000,-326.3532855,0.00023277,2]
[424163849,1780621848000,-457.165364,0.00023277,2]
[424163857,1780621848000,-457.1814941,0.00023277,2]
[424163848,1780621848000,-326.3532855,0.00023277,2]
[424163816,1780621848000,-89783.37655906,0.00023277,7]
[424163821,1780621848000,-500.0,0.00023277,2]
[424163822,1780621848000,-500.0,0.00023277,2]
[424163832,1780621848000,-156.44,0.00023277,2]
[424163825,1780621848000,-156.48,0.00023277,2]
[424163824,1780621848000,-184.87,0.00023277,2]
[424163823,1780621848000,-750.08510634,0.00023277,2]
[424163833,1780621848000,-457.165364,0.00023277,2]
[424163852,1780621848000,-457.165364,0.00023277,2]
[424163829,1780621848000,-156.44,0.00023277,2]
[424163828,1780621848000,-156.44,0.00023277,2]
[424163831,1780621848000,-156.44,0.00023277,2]
[424163826,1780621848000,-156.44,0.00023277,2]
[424163827,1780621848000,-156.44,0.00023277,2]
[424163834,1780621848000,-326.3657545,0.00023277,2]
[424163830,1780621848000,-156.44,0.00023277,2]
[424163845,1780621848000,-326.3532855,0.00023277,2]
[424163838,1780621848000,-457.165364,0.00023277,2]
[424163844,1780621848000,-457.165364,0.00023277,2]
[424163847,1780621848000,-326.3657545,0.00023277,2]
[424163842,1780621848000,-326.3532855,0.00023277,2]
[424163843,1780621848000,-326.3532855,0.00023277,2]
[424163841,1780621848000,-457.165364,0.00023277,2]
[424163840,1780621848000,-457.165364,0.00023277,2]
[424163836,1780621848000,-326.3532855,0.00023277,2]
[424163837,1780621848000,-457.1814941,0.00023277,2]
[424163846,1780621848000,-457.165364,0.00023277,2]
[424163835,1780621848000,-458.5848076,0.00023277,2]
[424163839,1780621848000,-457.165364,0.00023277,2]
[424163922,1780621849000,-457.165364,0.00023277,2]
[424163930,1780621849000,-151.0,0.00023277,2]
[424163921,1780621849000,-326.3532855,0.00023277,2]
[424163924,1780621849000,-326.3532855,0.00023277,2]
[424163929,1780621849000,-457.165364,0.00023277,2]
[424163920,1780621849000,-457.165364,0.00023277,2]
[424163918,1780621849000,-457.165364,0.00023277,2]
[424163919,1780621849000,-151.0,0.00023277,2]
[424163917,1780621849000,-151.0,0.00023277,2]
[424163914,1780621849000,-457.165364,0.00023277,2]
[424163916,1780621849000,-326.3532855,0.00023277,2]
[424163915,1780621849000,-457.165364,0.00023277,2]
[424163923,1780621849000,-457.165364,0.00023277,2]
[424163931,1780621849000,-218.6006432,0.00023277,2]
[424163928,1780621849000,-326.3532855,0.00023277,2]
[424163940,1780621849000,-326.3532855,0.00023277,2]
[424163926,1780621849000,-457.165364,0.00023277,2]
[424163927,1780621849000,-326.3532855,0.00023277,2]
[424163925,1780621849000,-151.0,0.00023277,2]
[424163933,1780621849000,-326.3532855,0.00023277,2]
[424163934,1780621849000,-326.3657545,0.00023277,2]
[424163935,1780621849000,-457.165364,0.00023277,2]
[424163944,1780621849000,-327.4505594,0.00023277,2]
[424163937,1780621849000,-457.165364,0.00023277,2]
[424163936,1780621849000,-151.0,0.00023277,2]
[424163945,1780621849000,-151.0,0.00023277,2]
[424163938,1780621849000,-489.84239024,0.00023277,2]
[424163943,1780621849000,-326.3532855,0.00023277,2]
[424163942,1780621849000,-457.1814941,0.00023277,2]
[424163912,1780621849000,-151.0,0.00023277,2]
[424163932,1780621849000,-457.165364,0.00023277,2]
[424163913,1780621849000,-151.0,0.00023277,2]
[424163880,1780621849000,-151.0,0.00023277,2]
[424163909,1780621849000,-457.165364,0.00023277,2]
[424163882,1780621849000,-151.0,0.00023277,2]
[424163881,1780621849000,-457.165364,0.00023277,2]
[424163891,1780621849000,-326.3532855,0.00023277,2]
[424163883,1780621849000,-457.165364,0.00023277,2]
[424163884,1780621849000,-151.478413,0.00023277,2]
[424163888,1780621849000,-151.0,0.00023277,2]
[424163889,1780621849000,-457.165364,0.00023277,2]
[424163890,1780621849000,-326.3657545,0.00023277,2]
[424163892,1780621849000,-457.165364,0.00023277,2]
[424163887,1780621849000,-326.3532855,0.00023277,2]
[424163886,1780621849000,-457.165364,0.00023277,2]
[424163885,1780621849000,-151.0,0.00023277,2]
[424163902,1780621849000,-326.3532857,0.00023277,2]
[424163903,1780621849000,-325.6500292,0.00023277,2]
[424163904,1780621849000,-457.165364,0.00023277,2]
[424163895,1780621849000,-457.165364,0.00023277,2]
[424163893,1780621849000,-151.0,0.00023277,2]
[424163894,1780621849000,-151.0,0.00023277,2]
[424163897,1780621849000,-151.1972858,0.00023277,2]
[424163896,1780621849000,-326.3532855,0.00023277,2]
[424163898,1780621849000,-151.0,0.00023277,2]
[424163899,1780621849000,-326.3532855,0.00023277,2]
[424163901,1780621849000,-151.0,0.00023277,2]
[424163900,1780621849000,-457.1814941,0.00023277,2]
[424163905,1780621849000,-457.165364,0.00023277,2]
[424163910,1780621849000,-151.0,0.00023277,2]
[424163908,1780621849000,-326.3532855,0.00023277,2]
[424163907,1780621849000,-326.3532855,0.00023277,2]
[424163906,1780621849000,-457.165364,0.00023277,2]
[424163911,1780621849000,-326.3532855,0.00023277,2]
[424163939,1780621849000,-457.165364,0.00023277,2]
[424164008,1780621849000,-197.88,0.00023333,7]
[424163941,1780621849000,-457.165364,0.00023277,2]
[424163980,1780621849000,-160.0,0.00023298,30]
[424163981,1780621849000,-156.0,0.00023299,120]
[424163979,1780621849000,-272.5,0.00023297,2]
[424163983,1780621849000,-151.6,0.000233,2]
[424163982,1780621849000,-151.34,0.000233,2]
[424163985,1780621849000,-150.37,0.000233,2]
[424163984,1780621849000,-150.36,0.000233,2]
[424163988,1780621849000,-151.09,0.000233,2]
[424163993,1780621849000,-151.06,0.000233,2]
[424163992,1780621849000,-151.03,0.000233,2]
[424163994,1780621849000,-151.07,0.000233,2]
[424163998,1780621849000,-265.75218007,0.000233,30]
[424163995,1780621849000,-151.02,0.000233,2]
[424163991,1780621849000,-151.41,0.000233,2]
[424163990,1780621849000,-151.41,0.000233,2]
[424163989,1780621849000,-150.52,0.000233,2]
[424163997,1780621849000,-767.92208879,0.000233,10]
[424163999,1780621849000,-1094.02,0.000233,2]
[424163996,1780621849000,-767.92208879,0.000233,7]
[424164001,1780621849000,-272.5,0.0002331,2]
[424164000,1780621849000,-272.5,0.00023303,2]
[424164002,1780621849000,-272.5,0.00023317,2]
[424164003,1780621849000,-151.0,0.00023319,4]
[424164005,1780621849000,-163.50638469,0.00023322,2]
[424164004,1780621849000,-1242.180159,0.00023322,14]
[424164006,1780621849000,-272.5,0.00023324,2]
[424164009,1780621849000,-194.41095914,0.00023348,7]
[424164010,1780621849000,-152.43,0.00023376,7]
[424163946,1780621849000,-215.87,0.00023277,2]
[424163978,1780621849000,-272.5,0.0002329,2]
[424163977,1780621849000,-155.58209396,0.00023288,2]
[424164007,1780621849000,-152.43,0.00023326,7]
[424163986,1780621849000,-150.37,0.000233,2]
[424163987,1780621849000,-150.52,0.000233,2]
[424163948,1780621849000,-456.9606777,0.00023277,2]
[424163957,1780621849000,-151.0,0.00023277,2]
[424163947,1780621849000,-215.88,0.00023277,2]
[424163959,1780621849000,-457.165364,0.00023277,2]
[424163961,1780621849000,-151.0,0.00023277,2]
[424163960,1780621849000,-151.0,0.00023277,2]
[424163950,1780621849000,-326.3532855,0.00023277,2]
[424163949,1780621849000,-326.3532855,0.00023277,2]
[424163953,1780621849000,-326.3532855,0.00023277,2]
[424163952,1780621849000,-151.0,0.00023277,2]
[424163951,1780621849000,-457.165364,0.00023277,2]
[424163956,1780621849000,-326.3532855,0.00023277,2]
[424163954,1780621849000,-457.165364,0.00023277,2]
[424163955,1780621849000,-457.165364,0.00023277,2]
[424163958,1780621849000,-213.6124027,0.00023277,2]
[424163973,1780621849000,-3150.6,0.00023288,2]
[424163963,1780621849000,-457.165364,0.00023277,2]
[424163975,1780621849000,-4009.86,0.00023288,7]
[424163972,1780621849000,-272.5,0.00023283,2]
[424163964,1780621849000,-151.9315249,0.00023277,2]
[424163966,1780621849000,-151.2218073,0.00023277,2]
[424163969,1780621849000,-151.0,0.00023277,2]
[424163967,1780621849000,-457.165364,0.00023277,2]
[424163970,1780621849000,-1060.0,0.00023277,7]
[424163974,1780621849000,-3150.61,0.00023288,2]
[424163962,1780621849000,-326.3657545,0.00023277,2]
[424163968,1780621849000,-326.3532855,0.00023277,2]
[424163976,1780621849000,-1145.67,0.00023288,2]
[424163965,1780621849000,-469.2189679,0.00023277,2]
[424163971,1780621849000,-197.88,0.00023283,7]
[424164053,1780621850000,-150.82,0.00023571,7]
[424164046,1780621850000,-200.0,0.000235,2]
[424164043,1780621850000,-152.43,0.00023476,7]
[424164045,1780621850000,-217.89,0.00023495,7]
[424164047,1780621850000,-150.82,0.00023521,7]
[424164044,1780621850000,-197.88,0.00023483,7]
[424164042,1780621850000,-150.82,0.00023471,7]
[424164050,1780621850000,-217.89,0.00023545,7]
[424164049,1780621850000,-197.88,0.00023533,7]
[424164051,1780621850000,-200.0,0.00023569,120]
[424164052,1780621850000,-5205.0,0.0002357,10]
[424164041,1780621850000,-217.89,0.00023445,7]
[424164048,1780621850000,-152.43,0.00023526,7]
[424164057,1780621850000,-197.88,0.00023583,7]
[424164056,1780621850000,-1219.78331515,0.00023583,2]
[424164058,1780621850000,-217.89,0.00023595,7]
[424164060,1780621850000,-240.53,0.00023616,30]
[424164061,1780621850000,-150.82,0.00023621,7]
[424164059,1780621850000,-156.64053496,0.000236,30]
[424164055,1780621850000,-509.53825,0.0002358,7]
[424164063,1780621850000,-197.88,0.00023633,7]
[424164062,1780621850000,-152.43,0.00023626,7]
[424164064,1780621850000,-194.0,0.00023638,120]
[424164065,1780621850000,-175.0,0.00023638,120]
[424164040,1780621850000,-839096.3191,0.00023444,2]
[424164069,1780621850000,-271.0,0.00023638,120]
[424164054,1780621850000,-152.43,0.00023576,7]
[424164028,1780621850000,-223.0,0.000234,120]
[424164021,1780621850000,-4430.7,0.00023396,7]
[424164035,1780621850000,-1000.0,0.00023401,10]
[424164070,1780621850000,-200.0,0.00023638,120]
[424164012,1780621850000,-152.43066183,0.00023396,7]
[424164013,1780621850000,-215.24,0.00023396,7]
[424164011,1780621850000,-197.88,0.00023383,7]
[424164014,1780621850000,-161.43,0.00023396,2]
[424164016,1780621850000,-4177.51,0.00023396,2]
[424164015,1780621850000,-699.55,0.00023396,2]
[424164018,1780621850000,-4177.51,0.00023396,2]
[424164019,1780621850000,-4177.51,0.00023396,2]
[424164020,1780621850000,-4177.54,0.00023396,2]
[424164017,1780621850000,-4177.51,0.00023396,2]
[424164026,1780621850000,-22805.22096577,0.000234,30]
[424164027,1780621850000,-156.0,0.000234,120]
[424164025,1780621850000,-299.51,0.00023396,2]
[424164024,1780621850000,-3797.74,0.00023396,2]
[424164022,1780621850000,-4430.7,0.00023396,7]
[424164030,1780621850000,-240.0,0.000234,120]
[424164037,1780621850000,-150.82,0.00023421,7]
[424164029,1780621850000,-217.0,0.000234,120]
[424164036,1780621850000,-492.0,0.00023401,10]
[424164038,1780621850000,-152.43,0.00023426,7]
[424164033,1780621850000,-349.0,0.000234,120]
[424164034,1780621850000,-152.0,0.000234,120]
[424164039,1780621850000,-197.88,0.00023433,7]
[424164031,1780621850000,-214.0,0.000234,120]
[424164032,1780621850000,-167.0,0.000234,120]
[424164023,1780621850000,-4430.7,0.00023396,7]
[424164066,1780621850000,-272.0,0.00023638,120]
[424164067,1780621850000,-245.0,0.00023638,120]
[424164068,1780621850000,-239.0,0.00023638,120]
[424164099,1780621850000,-152.43,0.00023726,7]
[424164102,1780621850000,-150.82,0.00023771,7]
[424164103,1780621850000,-152.43,0.00023776,7]
[424164106,1780621850000,-150.82,0.00023821,7]
[424164104,1780621850000,-197.88,0.00023783,7]
[424164105,1780621850000,-217.89,0.00023795,7]
[424164107,1780621850000,-152.43,0.00023826,7]
[424164114,1780621850000,-150.82,0.00023921,7]
[424164109,1780621850000,-185.0,0.00023844,2]
[424164115,1780621850000,-152.43,0.00023926,7]
[424164116,1780621850000,-150.82,0.00023971,7]
[424164118,1780621850000,-160.0,0.00024,7]
[424164098,1780621850000,-150.82,0.00023721,7]
[424164108,1780621850000,-197.88,0.00023833,7]
[424164119,1780621850000,-1756.72337316,0.00024,2]
[424164110,1780621850000,-217.97710074,0.00023845,7]
[424164111,1780621850000,-150.82,0.00023871,7]
[424164113,1780621850000,-197.89271458,0.00023883,7]
[424164120,1780621850000,-471.21629992,0.00024,2]
[424164121,1780621850000,-28540.04700569,0.00024,2]
[424164124,1780621850000,-767.92208879,0.00024,30]
[424164126,1780621850000,-767.92208879,0.00024,10]
[424164122,1780621850000,-160.0,0.00024,30]
[424164123,1780621850000,-767.92208879,0.00024,7]
[424164127,1780621850000,-1031.0,0.00024,2]
[424164125,1780621850000,-177.0,0.00024,7]
[424164112,1780621850000,-152.43,0.00023876,7]
[424164101,1780621850000,-217.89,0.00023745,7]
[424164117,1780621850000,-152.43,0.00023976,7]
[424164097,1780621850000,-455.93,0.000237,2]
[424164071,1780621850000,-200.0,0.00023638,120]
[424164100,1780621850000,-197.88,0.00023733,7]
[424164081,1780621850000,-156.0,0.0002365,30]
[424164072,1780621850000,-179.0,0.00023638,120]
[424164082,1780621850000,-151.0,0.0002365,6]
[424164078,1780621850000,-283.22644342,0.00023638,120]
[424164077,1780621850000,-172.0,0.00023638,120]
[424164073,1780621850000,-276.0,0.00023638,120]
[424164079,1780621850000,-513.88,0.00023643,30]
[424164075,1780621850000,-200.0,0.00023638,120]
[424164076,1780621850000,-262.0,0.00023638,120]
[424164080,1780621850000,-217.89,0.00023645,7]
[424164090,1780621850000,-331.49,0.000237,2]
[424164074,1780621850000,-152.0,0.00023638,120]
[424164095,1780621850000,-1221.755,0.000237,2]
[424164096,1780621850000,-1221.75,0.000237,2]
[424164094,1780621850000,-1223.58,0.000237,2]
[424164085,1780621850000,-197.88,0.00023683,7]
[424164089,1780621850000,-1819.19,0.000237,2]
[424164084,1780621850000,-152.43,0.00023676,7]
[424164092,1780621850000,-1403.34,0.000237,2]
[424164086,1780621850000,-217.89,0.00023695,7]
[424164087,1780621850000,-1819.189,0.000237,2]
[424164088,1780621850000,-1819.189,0.000237,2]
[424164083,1780621850000,-150.82,0.00023671,7]
[424164093,1780621850000,-1223.58,0.000237,2]
[424164091,1780621850000,-387.4,0.000237,2]
[424164171,1780621851000,-251.0,0.0002432,120]
[424164167,1780621851000,-200.0,0.0002432,120]
[424164172,1780621851000,-248.0,0.0002432,120]
[424164166,1780621851000,-168.0,0.0002431,120]
[424164168,1780621851000,-321.0,0.0002432,120]
[424164165,1780621851000,-164.0,0.0002431,120]
[424164162,1780621851000,-182.0,0.0002431,120]
[424164163,1780621851000,-200.0,0.0002431,120]
[424164164,1780621851000,-200.0,0.0002431,120]
[424164169,1780621851000,-200.0,0.0002432,120]
[424164161,1780621851000,-250.0,0.0002431,120]
[424164181,1780621851000,-177.23,0.0002446,7]
[424164170,1780621851000,-260.0,0.0002432,120]
[424164182,1780621851000,-150.82,0.00024471,7]
[424164187,1780621851000,-152.43,0.00024526,7]
[424164176,1780621851000,-150.82,0.00024371,7]
[424164174,1780621851000,-152.43,0.00024326,7]
[424164177,1780621851000,-152.43,0.00024376,7]
[424164178,1780621851000,-177.23,0.0002441,7]
[424164179,1780621851000,-150.82,0.00024421,7]
[424164175,1780621851000,-177.23,0.0002436,7]
[424164180,1780621851000,-152.43,0.00024426,7]
[424164183,1780621851000,-152.43,0.00024476,7]
[424164185,1780621851000,-942.56457878,0.00024514,2]
[424164184,1780621851000,-177.23,0.0002451,7]
[424164186,1780621851000,-150.82,0.00024521,7]
[424164189,1780621851000,-152.43066183,0.00024565,7]
[424164158,1780621851000,-156.0,0.00024299,120]
[424164173,1780621851000,-150.82,0.00024321,7]
[424164160,1780621851000,-250.0,0.0002431,120]
[424164132,1780621851000,-152.43,0.00024076,7]
[424164155,1780621851000,-250.0,0.00024287,120]
[424164129,1780621851000,-152.43,0.00024026,7]
[424164131,1780621851000,-200.0,0.00024075,120]
[424164130,1780621851000,-150.82,0.00024071,7]
[424164188,1780621851000,-177.23,0.0002456,7]
[424164128,1780621851000,-150.82,0.00024021,7]
[424164135,1780621851000,-245.82,0.000241,2]
[424164134,1780621851000,-474.39,0.000241,2]
[424164133,1780621851000,-306.36,0.000241,2]
[424164144,1780621851000,-177.23,0.0002421,7]
[424164138,1780621851000,-212.39,0.000241,2]
[424164136,1780621851000,-205.28679639,0.000241,2]
[424164139,1780621851000,-364.2,0.000241,2]
[424164142,1780621851000,-150.82,0.00024171,7]
[424164141,1780621851000,-152.43,0.00024126,7]
[424164140,1780621851000,-150.82,0.00024121,7]
[424164145,1780621851000,-150.82,0.00024221,7]
[424164137,1780621851000,-212.39,0.000241,2]
[424164143,1780621851000,-152.43,0.00024176,7]
[424164147,1780621851000,-177.23,0.0002426,7]
[424164146,1780621851000,-152.43,0.00024226,7]
[424164156,1780621851000,-186.0,0.00024287,120]
[424164149,1780621851000,-152.43,0.00024276,7]
[424164157,1780621851000,-154.0,0.00024287,120]
[424164148,1780621851000,-150.82,0.00024271,7]
[424164152,1780621851000,-160.0,0.00024277,120]
[424164151,1780621851000,-152.0,0.00024277,120]
[424164150,1780621851000,-800182.77356332,0.00024277,120]
[424164153,1780621851000,-177.0,0.00024287,120]
[424164154,1780621851000,-250.0,0.00024287,120]
[424164159,1780621851000,-177.23,0.0002431,7]
[424164190,1780621851000,-150.82,0.00024571,7]
[424164249,1780621851000,-797.0,0.00024658,2]
[424164194,1780621851000,-200.0,0.00024586,120]
[424164228,1780621851000,-797.0,0.00024658,2]
[424164233,1780621851000,-797.0,0.00024658,2]
[424164224,1780621851000,-151.5,0.00024658,2]
[424164225,1780621851000,-151.5,0.00024658,2]
[424164226,1780621851000,-151.5,0.00024658,2]
[424164227,1780621851000,-279.00369652,0.00024658,2]
[424164231,1780621851000,-797.0,0.00024658,2]
[424164229,1780621851000,-797.0,0.00024658,2]
[424164232,1780621851000,-797.0,0.00024658,2]
[424164230,1780621851000,-797.0,0.00024658,2]
[424164238,1780621851000,-797.0,0.00024658,2]
[424164236,1780621851000,-797.0,0.00024658,2]
[424164240,1780621851000,-797.0,0.00024658,2]
[424164239,1780621851000,-797.0,0.00024658,2]
[424164241,1780621851000,-797.0,0.00024658,2]
[424164237,1780621851000,-797.0,0.00024658,2]
[424164248,1780621851000,-797.0,0.00024658,2]
[424164246,1780621851000,-797.0,0.00024658,2]
[424164243,1780621851000,-797.0,0.00024658,2]
[424164242,1780621851000,-797.0,0.00024658,2]
[424164245,1780621851000,-797.0,0.00024658,2]
[424164244,1780621851000,-797.0,0.00024658,2]
[424164247,1780621851000,-797.0,0.00024658,2]
[424164250,1780621851000,-797.0,0.00024658,2]
[424164255,1780621851000,-152.45117854,0.00024676,7]